fUSD/lending_fUSD_20260118
["ID","MTS","AMOUNT","RATE_DAILY","PERIOD"]
[402546897,1768704677716,-151.0,0.00016986,2]
[402546898,1768704677727,-784.15,0.00016986,2]
[402546899,1768704677740,-500.0,0.00016986,2]
[402546900,1768704677752,-500.0,0.00016986,2]
[402546901,1768704677764,-151.0,0.00016986,2]
[402546902,1768704677775,-759.857107,0.00016986,2]
[402546903,1768704677787,-759.857107,0.00016986,2]
[402546904,1768704677803,-500.0,0.00016986,2]
[402546905,1768704677815,-664.764017,0.00016986,2]
[402546906,1768704677826,-759.857107,0.00016986,2]
[402546907,1768704677838,-500.0,0.00016986,2]
[402546908,1768704677850,-664.764017,0.00016986,2]
[402546909,1768704677861,-759.857107,0.00016986,2]
[402546910,1768704677873,-500.0,0.00016986,2]
[402546911,1768704677885,-302.19747046,0.00016986,2]
[402546912,1768704677896,-664.764017,0.00016986,2]
[402546913,1768704677909,-664.764017,0.00016986,2]
[402546914,1768704677921,-1088.99,0.00016986,2]
[402546915,1768704677934,-500.0,0.00016986,2]
[402546916,1768704677946,-873.83,0.00016986,2]
[402546917,1768704677958,-500.0,0.00016986,2]
[402546918,1768704677970,-500.0,0.00016986,2]
[402546919,1768704677982,-500.0,0.00016986,2]
[402546920,1768704677995,-500.0,0.00016986,2]
[402546921,1768704678007,-151.0,0.00016986,2]
[402546922,1768704678018,-1374.153755,0.00016986,2]
[402546923,1768704678030,-500.0,0.00016986,2]
[402546924,1768704678041,-500.0,0.00016986,2]
[402546925,1768704678053,-500.0,0.00016986,2]
[402546926,1768704678064,-151.0,0.00016986,2]
[402546927,1768704678076,-1374.153755,0.00016986,2]
[402546928,1768704678088,-1374.153755,0.00016986,2]
[402546929,1768704678100,-500.0,0.00016986,2]
[402546930,1768704678112,-850.44348,0.00016986,2]
[402546931,1768704678124,-1374.153755,0.00016986,2]
[402546932,1768704678135,-850.44348,0.00016986,2]
[402546933,1768704678148,-849.28,0.00016986,2]
[402546934,1768704678160,-500.0,0.00016986,2]
[402546935,1768704678172,-850.44348,0.00016986,2]
[402546936,1768704678184,-500.0,0.00016986,2]
[402546937,1768704678197,-554.17,0.00016986,2]
[402546938,1768704678210,-850.44348,0.00016986,2]
[402546939,1768704678224,-500.0,0.00016986,2]
[402546940,1768704678236,-151.0,0.00016986,2]
[402546941,1768704678248,-507.06803848,0.00016986,2]
[402546942,1768704678259,-500.0,0.00016986,2]
[402546943,1768704678271,-423.863591,0.00016986,2]
[402546944,1768704678283,-151.0,0.00016986,2]
[402546945,1768704678295,-656.33,0.00016986,2]
[402546946,1768704678306,-257.183524,0.00016986,2]
[402546947,1768704678318,-500.0,0.00016986,2]
[402546948,1768704678329,-423.863591,0.00016986,2]
[402546949,1768704678341,-151.0,0.00016986,2]
[402546950,1768704678352,-257.183524,0.00016986,2]
[402546951,1768704678364,-855.830383,0.00016986,2]
[402546952,1768704678375,-423.863591,0.00016986,2]
[402546953,1768704678387,-151.0,0.00016986,2]
[402546954,1768704678399,-257.183524,0.00016986,2]
[402546955,1768704678411,-503.58800826,0.00016986,2]
[402546956,1768704678423,-828.81,0.00016986,2]
[402546957,1768704678435,-855.830383,0.00016986,2]
[402546958,1768704678446,-423.863591,0.00016986,2]
[402546959,1768704678458,-1041.03,0.00016986,2]
[402546960,1768704678469,-498.9451925,0.00016986,2]
[402546961,1768704678481,-257.183524,0.00016986,2]
[402546962,1768704678493,-855.830383,0.00016986,2]
[402546963,1768704678505,-500.0,0.00016986,2]
[402546964,1768704678517,-855.830383,0.00016986,2]
[402546965,1768704678528,-2575.951288,0.00016986,2]
[402546966,1768704678540,-1035.972722,0.00016986,2]
[402546967,1768704678552,-2575.951288,0.00016986,2]
[402546968,1768704678564,-652.83,0.00016986,2]
[402546969,1768704678576,-704.21,0.00016986,2]
[402546970,1768704678588,-610.279378,0.00016986,2]
[402546971,1768704678600,-151.0,0.00016986,2]
[402546972,1768704678612,-1035.972722,0.00016986,2]
[402546973,1768704678624,-500.0,0.00016986,2]
[402546974,1768704678636,-2575.951288,0.00016986,2]
[402546975,1768704678648,-593.79,0.00016986,2]
[402546976,1768704678660,-444.29648657,0.00016986,2]
[402546977,1768704678672,-151.0,0.00016986,2]
[402546978,1768704678684,-610.279378,0.00016986,2]
[402546979,1768704678698,-1035.972722,0.00016986,2]
[402546980,1768704678710,-1235.814418,0.00016986,2]
[402546981,1768704678721,-1293.52,0.00016986,2]
[402546982,1768704678735,-2575.951288,0.00016986,2]
[402546983,1768704678746,-284.412342,0.00016986,2]
[402546984,1768704678758,-2171.701287,0.00016986,2]
[402546985,1768704678769,-151.0,0.00016986,2]
[402546986,1768704678780,-610.279378,0.00016986,2]
[402546987,1768704678791,-500.0,0.00016986,2]
[402546988,1768704678802,-1235.814418,0.00016986,2]
[402546989,1768704678814,-1035.972722,0.00016986,2]
[402546990,1768704678826,-284.412342,0.00016986,2]
[402546991,1768704678838,-747.18,0.00016986,2]
[402546992,1768704678850,-610.279378,0.00016986,2]
[402546993,1768704678862,-2171.701287,0.00016986,2]
[402546994,1768704678874,-500.0,0.00016986,2]
[402546995,1768704678887,-1235.814418,0.00016986,2]
[402546996,1768704678901,-284.412342,0.00016986,2]
[402546997,1768704678912,-500.0,0.00016986,2]
[402546998,1768704678922,-500.0,0.00016986,2]
[402546999,1768704678932,-2171.701287,0.00016986,2]
[402547000,1768704678942,-1096.422466,0.00016986,2]
[402547001,1768704678951,-514.76849807,0.00016986,2]
[402547002,1768704678960,-1235.814418,0.00016986,2]
[402547003,1768704678970,-284.412342,0.00016986,2]
[402547004,1768704679498,-514.03,0.00016986,2]
[402547005,1768704679532,-2171.701287,0.00016986,2]
[402547006,1768704679557,-1096.422466,0.00016986,2]
[402547007,1768704679566,-642.56,0.00016986,2]
[402547008,1768704679576,-580.083029,0.00016986,2]
[402547009,1768704679585,-615.25498,0.00016986,2]
[402547010,1768704679593,-1096.422466,0.00016986,2]
[402547011,1768704679603,-706.13,0.00016986,2]
[402547012,1768704679612,-930.603986,0.00016986,2]
[402547013,1768704679621,-500.0,0.00016986,2]
[402547014,1768704679630,-580.083029,0.00016986,2]
[402547015,1768704679638,-615.25498,0.00016986,2]
[402547016,1768704679647,-567.23,0.00016986,2]
[402547017,1768704679656,-622.09,0.00016986,2]
[402547018,1768704679666,-500.0,0.00016986,2]
[402547019,1768704679674,-930.603986,0.00016986,2]
[402547020,1768704679687,-1096.422466,0.00016986,2]
[402547021,1768704679696,-580.083029,0.00016986,2]
[402547022,1768704679705,-615.25498,0.00016986,2]
[402547023,1768704679714,-704.428392,0.00016986,2]
[402547024,1768704679723,-652.840886,0.00016986,2]
[402547025,1768704679734,-930.603986,0.00016986,2]
[402547026,1768704679743,-580.083029,0.00016986,2]
[402547027,1768704679752,-500.0,0.00016986,2]
[402547028,1768704679761,-704.428392,0.00016986,2]
[402547029,1768704679770,-615.25498,0.00016986,2]
[402547030,1768704679779,-500.0,0.00016986,2]
[402547031,1768704679788,-526.47,0.00016986,2]
[402547032,1768704679797,-930.603986,0.00016986,2]
[402547033,1768704679806,-704.428392,0.00016986,2]
[402547034,1768704679815,-500.0,0.00016986,2]
[402547035,1768704679824,-704.428392,0.00016986,2]
[402547036,1768704679833,-500.0,0.00016986,2]
[402547037,1768704679842,-239.97282119,0.00016986,2]
[402547038,1768704679852,-479.87001615,0.00016986,2]
[402547039,1768704679861,-500.0,0.00016986,2]
[402547040,1768704679871,-769.53,0.00016986,2]
[402547041,1768704679880,-500.0,0.00016986,2]
[402547042,1768704679890,-500.0,0.00016986,2]
[402547043,1768704679899,-652.840886,0.00016986,2]
[402547044,1768704679909,-500.0,0.00016986,2]
[402547045,1768704679918,-500.0,0.00016986,2]
[402547046,1768704679927,-500.0,0.00016986,2]
[402547047,1768704679936,-614.22,0.00016986,2]
[402547048,1768704679945,-500.0,0.00016986,2]
[402547049,1768704679955,-652.840886,0.00016986,2]
[402547050,1768704679964,-500.0,0.00016986,2]
[402547051,1768704679973,-1074.489664,0.00016986,2]
[402547052,1768704679982,-685.95,0.00016986,2]
[402547053,1768704679992,-500.0,0.00016986,2]
[402547054,1768704680002,-652.840886,0.00016986,2]
[402547055,1768704680012,-1074.489664,0.00016986,2]
[402547056,1768704680023,-500.0,0.00016986,2]
[402547057,1768704680033,-1074.489664,0.00016986,2]
[402547058,1768704680042,-436.74724667,0.00016986,2]
[402547059,1768704680051,-500.0,0.00016986,2]
[402547060,1768704680061,-500.0,0.00016986,2]
[402547061,1768704680070,-538.24,0.00016986,2]
[402547062,1768704680080,-1074.489664,0.00016986,2]
[402547063,1768704680090,-500.0,0.00016986,2]
[402547064,1768704680099,-518.15,0.00016986,2]
[402547065,1768704680109,-522.43,0.00016986,2]
[402547066,1768704680118,-828.15,0.00016986,2]
[402547067,1768704680128,-583.36,0.00016986,2]
[402547068,1768704680139,-746.7,0.00016986,2]
[402547069,1768704680148,-733.72,0.00016986,2]
[402547070,1768704680158,-151.0,0.00016986,2]
[402547071,1768704680167,-932.56,0.00016986,2]
[402547072,1768704680177,-261.003409,0.00016986,2]
[402547073,1768704680186,-151.0,0.00016986,2]
[402547074,1768704680196,-500.0,0.00016986,2]
[402547075,1768704680205,-151.0,0.00016986,2]
[402547076,1768704680214,-261.003409,0.00016986,2]
[402547077,1768704680225,-500.0,0.00016986,2]
[402547078,1768704680234,-210.155143,0.00016986,2]
[402547079,1768704680244,-261.003409,0.00016986,2]
[402547080,1768704680254,-500.0,0.00016986,2]
[402547081,1768704680263,-937.7,0.00016986,2]
[402547082,1768704680272,-261.003409,0.00016986,2]
[402547083,1768704680281,-500.0,0.00016986,2]
[402547084,1768704680291,-500.0,0.00016986,2]
[402547085,1768704680300,-711.37,0.00016986,2]
[402547086,1768704680309,-266.18201,0.00016986,2]
[402547087,1768704680318,-500.0,0.00016986,2]
[402547088,1768704680328,-566.38,0.00016986,2]
[402547089,1768704680337,-500.0,0.00016986,2]
[402547090,1768704680347,-266.18201,0.00016986,2]
[402547091,1768704680357,-500.0,0.00016986,2]
[402547092,1768704680367,-500.0,0.00016986,2]
[402547093,1768704680377,-446.630138,0.00016986,2]
[402547094,1768704680386,-266.18201,0.00016986,2]
[402547095,1768704680395,-500.0,0.00016986,2]
[402547096,1768704680404,-598.62,0.00016986,2]
[402547097,1768704680414,-500.0,0.00016986,2]
[402547098,1768704680423,-266.18201,0.00016986,2]
[402547099,1768704680435,-446.630138,0.00016986,2]
[402547100,1768704680444,-193.064285,0.00016986,2]
[402547101,1768704680453,-1102.649028,0.00016986,2]
[402547102,1768704680463,-636.73,0.00016986,2]
[402547103,1768704680473,-446.630138,0.00016986,2]
[402547104,1768704680483,-151.0,0.00016986,2]
[402547105,1768704680494,-672.552879,0.00016986,2]
[402547106,1768704680504,-193.064285,0.00016986,2]
[402547107,1768704680514,-553.56682916,0.00016986,2]
[402547108,1768704680525,-500.0,0.00016986,2]
[402547109,1768704680534,-1102.649028,0.00016986,2]
[402547110,1768704680545,-446.630138,0.00016986,2]
[402547111,1768704680556,-151.0,0.00016986,2]
[402547112,1768704680565,-193.064285,0.00016986,2]
[402547113,1768704680575,-672.552879,0.00016986,2]
[402547114,1768704680584,-500.0,0.00016986,2]
[402547115,1768704680594,-1102.649028,0.00016986,2]
[402547116,1768704680603,-500.0,0.00016986,2]
[402547117,1768704680613,-193.064285,0.00016986,2]
[402547118,1768704680622,-976.47,0.00016986,2]
[402547119,1768704680631,-672.552879,0.00016986,2]
[402547120,1768704680640,-500.0,0.00016986,2]
[402547121,1768704680649,-500.0,0.00016986,2]
[402547122,1768704680658,-1102.649028,0.00016986,2]
[402547123,1768704680667,-1221.825216,0.00016986,2]
[402547124,1768704680679,-978.58,0.00016986,2]
[402547125,1768704680691,-500.0,0.00016986,2]
[402547126,1768704680700,-672.552879,0.00016986,2]
[402547127,1768704680709,-244.80682,0.00016986,2]
[402547128,1768704680719,-1221.825216,0.00016986,2]
[402547129,1768704680730,-244.80682,0.00016986,2]
[402547130,1768704680739,-500.0,0.00016986,2]
[402547131,1768704680749,-1221.825216,0.00016986,2]
[402547132,1768704680759,-156.784273,0.00016986,2]
[402547133,1768704680769,-244.80682,0.00016986,2]
[402547134,1768704680778,-500.0,0.00016986,2]
[402547135,1768704680787,-1221.825216,0.00016986,2]
[402547136,1768704680797,-156.784273,0.00016986,2]
[402547137,1768704680806,-500.0,0.00016986,2]
[402547138,1768704680815,-500.0,0.00016986,2]
[402547139,1768704680825,-500.0,0.00016986,2]
[402547140,1768704680834,-244.80682,0.00016986,2]
[402547141,1768704680843,-500.0,0.00016986,2]
[402547142,1768704680853,-500.0,0.00016986,2]
[402547143,1768704680863,-156.784273,0.00016986,2]
[402547144,1768704680872,-500.0,0.00016986,2]
[402547145,1768704680882,-288.790084,0.00016986,2]
[402547146,1768704680892,-500.0,0.00016986,2]
[402547147,1768704680902,-568.1,0.00016986,2]
[402547148,1768704680911,-500.0,0.00016986,2]
[402547149,1768704680921,-156.784273,0.00016986,2]
[402547150,1768704680931,-288.790084,0.00016986,2]
[402547151,1768704680940,-500.0,0.00016986,2]
[402547152,1768704680949,-288.790084,0.00016986,2]
[402547153,1768704680959,-288.790084,0.00016986,2]
[402547154,1768704680968,-500.0,0.00016986,2]
[402547155,1768704680977,-500.0,0.00016986,2]
[402547156,1768704680987,-500.0,0.00016986,2]
[402547157,1768704680996,-500.0,0.00016986,2]
[402547158,1768704681007,-503.39,0.00016986,2]
[402547159,1768704681016,-500.0,0.00016986,2]
[402547160,1768704681025,-768.5,0.00016986,2]
[402547161,1768704681034,-500.0,0.00016986,2]
[402547162,1768704681044,-514.94948912,0.00016986,2]
[402547163,1768704681053,-500.0,0.00016986,2]
[402547164,1768704681063,-500.0,0.00016986,2]
[402547165,1768704681072,-639.7,0.00016986,2]
[402547166,1768704681081,-178.89618139,0.00016986,2]
[402547167,1768704681091,-500.0,0.00016986,2]
[402547168,1768704681100,-744.82,0.00016986,2]
[402547169,1768704681109,-730.582084,0.00016986,2]
[402547170,1768704681118,-550.76,0.00016986,2]
[402547171,1768704681127,-730.582084,0.00016986,2]
[402547172,1768704681136,-500.0,0.00016986,2]
[402547173,1768704681145,-500.0,0.00016986,2]
[402547174,1768704681154,-578.75,0.00016986,2]
[402547175,1768704681164,-730.582084,0.00016986,2]
[402547176,1768704681173,-730.582084,0.00016986,2]
[402547177,1768704681182,-500.0,0.00016986,2]
[402547178,1768704681191,-500.0,0.00016986,2]
[402547179,1768704681200,-500.0,0.00016986,2]
[402547180,1768704681209,-500.0,0.00016986,2]
[402547181,1768704681218,-500.0,0.00016986,2]
[402547182,1768704681228,-500.0,0.00016986,2]
[402547183,1768704681237,-551.65799456,0.00016986,2]
[402547184,1768704681246,-500.0,0.00016986,2]
[402547185,1768704681255,-500.0,0.00016986,2]
[402547186,1768704681264,-151.0,0.00016986,2]
[402547187,1768704681273,-500.0,0.00016986,2]
[402547188,1768704681282,-506.14847142,0.00016986,2]
[402547189,1768704681292,-500.0,0.00016986,2]
[402547190,1768704681301,-151.0,0.00016986,2]
[402547191,1768704681314,-523.82,0.00016986,2]
[402547192,1768704681324,-500.0,0.00016986,2]
[402547193,1768704681333,-511.36,0.00016986,2]
[402547194,1768704681342,-500.0,0.00016986,2]
[402547195,1768704681351,-579.99143,0.00016986,2]
[402547196,1768704681361,-708.692959,0.00016986,2]
[402547197,1768704681370,-500.0,0.00016986,2]
[402547198,1768704681382,-500.0,0.00016986,2]
[402547199,1768704681391,-579.99143,0.00016986,2]
[402547200,1768704681401,-500.0,0.00016986,2]
[402547201,1768704681411,-500.0,0.00016986,2]
[402547202,1768704681421,-708.692959,0.00016986,2]
[402547203,1768704681431,-151.0,0.00016986,2]
[402547204,1768704681440,-500.0,0.00016986,2]
[402547205,1768704681450,-511.15,0.00016986,2]
[402547206,1768704681460,-500.0,0.00016986,2]
[402547207,1768704681469,-579.99143,0.00016986,2]
[402547208,1768704681479,-500.0,0.00016986,2]
[402547209,1768704681488,-708.692959,0.00016986,2]
[402547210,1768704681498,-579.99143,0.00016986,2]
[402547211,1768704681509,-777.87762,0.00016986,2]
[402547212,1768704681519,-500.0,0.00016986,2]
[402547213,1768704681528,-708.692959,0.00016986,2]
[402547214,1768704681537,-500.0,0.00016986,2]
[402547215,1768704681546,-777.87762,0.00016986,2]
[402547216,1768704681555,-653.96,0.00016986,2]
[402547217,1768704681564,-519.76,0.00016986,2]
[402547218,1768704681574,-500.0,0.00016986,2]
[402547219,1768704681583,-500.0,0.00016986,2]
[402547220,1768704681592,-777.87762,0.00016986,2]
[402547221,1768704681601,-151.0,0.00016986,2]
[402547222,1768704681610,-500.0,0.00016986,2]
[402547223,1768704681619,-777.877611,0.00016986,2]
[402547224,1768704681629,-546.259073,0.00016986,2]
[402547225,1768704681638,-583.4,0.00016986,2]
[402547226,1768704681648,-546.259073,0.00016986,2]
[402547227,1768704681657,-500.0,0.00016986,2]
[402547228,1768704681667,-500.0,0.00016986,2]
[402547229,1768704681677,-178.487097,0.00016986,2]
[402547230,1768704681690,-500.0,0.00016986,2]
[402547231,1768704681701,-3134.37211,0.00016986,2]
[402547232,1768704681710,-546.259073,0.00016986,2]
[402547233,1768704681720,-984.61,0.00016986,2]
[402547234,1768704681730,-527.66,0.00016986,2]
[402547235,1768704681739,-3134.37211,0.00016986,2]
[402547236,1768704681749,-546.259079,0.00016986,2]
[402547237,1768704681757,-500.0,0.00016986,2]
[402547238,1768704681768,-648.686324,0.00016986,2]
[402547239,1768704681778,-3134.37211,0.00016986,2]
[402547240,1768704681787,-500.0,0.00016986,2]
[402547241,1768704681797,-648.686324,0.00016986,2]
[402547242,1768704681807,-8020.14,0.00016986,2]
[402547243,1768704681816,-3134.37211,0.00016986,2]
[402547244,1768704681825,-500.0,0.00016986,2]
[402547245,1768704681835,-520.18,0.00016986,2]
[402547246,1768704681844,-648.686324,0.00016986,2]
[402547247,1768704681855,-500.0,0.00016986,2]
[402547248,1768704681865,-811.1,0.00016986,2]
[402547249,1768704681875,-648.686317,0.00016986,2]
[402547250,1768704681885,-500.0,0.00016986,2]
[402547251,1768704681896,-500.0,0.00016986,2]
[402547252,1768704681907,-779.399026,0.00016986,2]
[402547253,1768704681918,-151.0,0.00016986,2]
[402547254,1768704681928,-500.0,0.00016986,2]
[402547255,1768704681938,-779.399026,0.00016986,2]
[402547256,1768704681948,-151.0,0.00016986,2]
[402547257,1768704681957,-500.0,0.00016986,2]
[402547258,1768704681967,-500.0,0.00016986,2]
[402547259,1768704681977,-1000.0,0.00016986,2]
[402547260,1768704681987,-266.18201,0.00016987,2]
[402547261,1768704681998,-266.18201,0.00016987,2]
[402547262,1768704682008,-446.630138,0.00016987,2]
[402547263,1768704682215,-266.18201,0.00016987,2]
[402547264,1768704682233,-266.182003,0.00016987,2]
[402547265,1768704682251,-446.630138,0.00016987,2]
[402547266,1768704682260,-1102.649028,0.00016987,2]
[402547267,1768704682270,-446.630138,0.00016987,2]
[402547268,1768704682279,-151.0,0.00016987,2]
[402547269,1768704682289,-672.552879,0.00016987,2]
[402547270,1768704682298,-1102.649028,0.00016987,2]
[402547271,1768704682307,-446.630129,0.00016987,2]
[402547272,1768704682316,-151.0,0.00016987,2]
[402547273,1768704682326,-672.552879,0.00016987,2]
[402547274,1768704682335,-1102.649028,0.00016987,2]
[402547275,1768704682344,-672.552879,0.00016987,2]
[402547276,1768704682354,-1102.649032,0.00016987,2]
[402547277,1768704682363,-1221.825216,0.00016987,2]
[402547278,1768704682373,-672.552886,0.00016987,2]
[402547279,1768704682382,-244.80682,0.00016987,2]
[402547280,1768704682392,-1221.825216,0.00016987,2]
[402547281,1768704682402,-244.80682,0.00016987,2]
[402547282,1768704682411,-1221.825216,0.00016987,2]
[402547283,1768704682421,-156.784273,0.00016987,2]
[402547284,1768704682430,-244.80682,0.00016987,2]
[402547285,1768704682440,-1221.8252101,0.00016987,2]
[402547286,1768704682449,-156.784273,0.00016987,2]
[402547287,1768704682458,-244.80683,0.00016987,2]
[402547288,1768704682467,-156.784273,0.00016987,2]
[402547289,1768704682478,-288.790084,0.00016987,2]
[402547290,1768704682488,-156.784281,0.00016987,2]
[402547291,1768704682497,-288.790084,0.00016987,2]
[402547292,1768704682507,-288.790084,0.00016987,2]
[402547293,1768704682517,-288.79008,0.00016987,2]
[402547294,1768704682527,-730.582084,0.00016987,2]
[402547295,1768704682536,-730.582084,0.00016987,2]
[402547296,1768704682546,-730.582084,0.00016987,2]
[402547297,1768704682555,-730.582082,0.00016987,2]
[402547298,1768704682564,-165.795788,0.00016987,2]
[402547299,1768704682573,-151.0,0.00016987,2]
[402547300,1768704682583,-579.99143,0.00016987,2]
[402547301,1768704682592,-708.692959,0.00016987,2]
[402547302,1768704682602,-579.99143,0.00016987,2]
[402547303,1768704682611,-708.692959,0.00016987,2]
[402547304,1768704682621,-254.77563431,0.00016987,2]
[402547305,1768704682630,-579.99143,0.00016987,2]
[402547306,1768704682640,-708.692959,0.00016987,2]
[402547307,1768704682649,-579.991434,0.00016987,2]
[402547308,1768704682659,-708.692964,0.00016987,2]
[402547309,1768704682669,-159.257723,0.00016987,2]
[402547310,1768704682679,-3134.37211,0.00016987,2]
[402547311,1768704682692,-3134.37211,0.00016987,2]
[402547312,1768704682701,-3134.37211,0.00016987,2]
[402547313,1768704682712,-3134.372105,0.00016987,2]
[402547314,1768704682722,-615.0,0.00016987,2]
[402547315,1768704682734,-1407.0,0.00016987,2]
[402547316,1768704682744,-1331.0,0.00016987,2]
[402547317,1768704682753,-926.147,0.00016987,2]
[402547318,1768704682763,-1210.816,0.00016987,2]
[402547319,1768704682772,-1269.323,0.00016987,2]
[402547320,1768704682782,-412.329,0.00016987,2]
[402547321,1768704682792,-6562.0,0.00016987,2]
[402547322,1768704682802,-4826.0,0.00016987,2]
[402547323,1768704682812,-567.42,0.00016987,2]
[402547324,1768704682821,-5801.83316437,0.00017,2]
[402547325,1768704682830,-250.0,0.00017,2]
[402547326,1768704682840,-187.78971762,0.00017003,2]
[402547327,1768704682849,-5180.0,0.00017009,2]
[402547328,1768704682859,-1851.0,0.00017013,2]
[402547329,1768704682868,-500.0,0.00017014,2]
[402547330,1768704682878,-433.0,0.00017015,2]
[402547331,1768704682889,-1125.3,0.0001702,2]
[402547332,1768704682907,-491.33634829,0.00017033,2]
[402547333,1768704682917,-483.79,0.00017041,2]
[402547334,1768704682926,-662.74,0.00017041,2]
[402547335,1768704682935,-19684.80200927,0.00017042,2]
[402547336,1768704682945,-151.0,0.00017042,2]
[402547337,1768704682954,-151.0,0.00017042,2]
[402547338,1768704682964,-855.830383,0.00017042,2]
[402547339,1768704682973,-151.0,0.00017042,2]
[402547340,1768704682983,-855.830383,0.00017042,2]
[402547341,1768704682992,-855.830383,0.00017042,2]
[402547342,1768704683002,-855.830387,0.00017042,2]
[402547343,1768704683011,-2575.951288,0.00017042,2]
[402547344,1768704683021,-1035.972722,0.00017042,2]
[402547345,1768704683031,-2575.951288,0.00017042,2]
[402547346,1768704683040,-610.279378,0.00017042,2]
[402547347,1768704683050,-1035.972722,0.00017042,2]
[402547348,1768704683060,-2575.951288,0.00017042,2]
[402547349,1768704683070,-610.279378,0.00017042,2]
[402547350,1768704683081,-1035.972722,0.00017042,2]
[402547351,1768704683091,-1235.814418,0.00017042,2]
[402547352,1768704683102,-2575.951285,0.00017042,2]
[402547353,1768704683113,-2171.701287,0.00017042,2]
[402547354,1768704683123,-610.279378,0.00017042,2]
[402547355,1768704683133,-1235.814418,0.00017042,2]
[402547356,1768704683143,-1035.972718,0.00017042,2]
[402547357,1768704683153,-610.279385,0.00017042,2]
[402547358,1768704683163,-2171.701287,0.00017042,2]
[402547359,1768704683173,-1235.814418,0.00017042,2]
[402547360,1768704683183,-2171.701287,0.00017042,2]
[402547361,1768704683194,-1096.422466,0.00017042,2]
[402547362,1768704683204,-1235.814422,0.00017042,2]
[402547363,1768704683214,-2171.7012802,0.00017042,2]
[402547364,1768704683224,-1096.422466,0.00017042,2]
[402547365,1768704683235,-580.083029,0.00017042,2]
[402547366,1768704683246,-615.25498,0.00017042,2]
[402547367,1768704683256,-1096.422466,0.00017042,2]
[402547368,1768704683267,-930.603986,0.00017042,2]
[402547369,1768704683276,-580.083029,0.00017042,2]
[402547370,1768704683286,-615.25498,0.00017042,2]
[402547371,1768704683297,-930.603986,0.00017042,2]
[402547372,1768704683307,-1096.422457,0.00017042,2]
[402547373,1768704683318,-580.083029,0.00017042,2]
[402547374,1768704683328,-615.25498,0.00017042,2]
[402547375,1768704683338,-704.428392,0.00017042,2]
[402547376,1768704683348,-652.840886,0.00017042,2]
[402547377,1768704683359,-930.603986,0.00017042,2]
[402547378,1768704683368,-580.083034,0.00017042,2]
[402547379,1768704683378,-704.428392,0.00017042,2]
[402547380,1768704683388,-615.254981,0.00017042,2]
[402547381,1768704683398,-930.603996,0.00017042,2]
[402547382,1768704683407,-704.428392,0.00017042,2]
[402547383,1768704683417,-704.428397,0.00017042,2]
[402547384,1768704683427,-652.840886,0.00017042,2]
[402547385,1768704683437,-652.840886,0.00017042,2]
[402547386,1768704683447,-1074.489664,0.00017042,2]
[402547387,1768704683457,-652.840883,0.00017042,2]
[402547388,1768704683467,-1074.489664,0.00017042,2]
[402547389,1768704683477,-1074.489664,0.00017042,2]
[402547390,1768704683488,-1074.489674,0.00017042,2]
[402547391,1768704683498,-151.0,0.00017042,2]
[402547392,1768704683508,-261.003409,0.00017042,2]
[402547393,1768704683518,-151.0,0.00017042,2]
[402547394,1768704683528,-151.0,0.00017042,2]
[402547395,1768704683537,-261.003409,0.00017042,2]
[402547396,1768704683548,-261.003409,0.00017042,2]